bitfinex/quotes_ETHUSD_20240715
["timestamp","ask_amount","ask_price","bid_price","bid_amount"]
[1721068752917,3.08133206,3402.8,3402.1,2.93935]
[1721068753116,0.84998389,3402.7,3402.0,2.93936]
[1721068753411,0.84998389,3402.7,3401.7,2.93965]
[1721068753412,0.61483206,3402.6,3401.7,2.93965]
[1721068753605,0.61483206,3402.6,3401.4,2.93988]
[1721068753829,4.30905108,3402.7,3402.0,2.93936]
[1721068754161,2.93902,3402.5,3401.7,2.93962]
[1721068754314,1.68714315,3402.4,3401.7,2.93962]
[1721068754713,1.68714315,3402.4,3401.7,5.87927]
[1721068755044,1.68714315,3402.4,3401.7,2.93962]
[1721068755254,2.93919,3402.3,3401.4,2.9399]
[1721068755469,0.55,3402.2,3401.5,2.9398]
[1721068755628,1.41725361,3402.2,3401.5,2.9398]
[1721068756153,0.05767913,3402.1,3401.5,2.9398]
[1721068757228,0.05767913,3402.1,3401.7,2.93968]
[1721068757434,1.07946402,3402.4,3401.9,2.93952]
[1721068757609,0.69421902,3402.7,3402.2,2.9392]
[1721068757808,0.61483206,3402.9,3402.2,5.8784]
[1721068758043,3.0,3402.9,3402.2,2.9392]
[1721068758213,0.15686985,3402.8,3402.2,2.9392]
[1721068758729,0.77170191,3402.8,3402.0,5.87879]
[1721068758907,0.21454898,3402.7,3402.0,5.87879]
[1721068759249,0.61483206,3402.8,3402.2,2.93921]
[1721068759250,0.6768051,3402.6,3402.2,2.93921]
[1721068759411,3.0,3402.9,3402.4,2.9391]
[1721068759412,3.61483206,3402.9,3402.4,2.9391]
[1721068759624,11.07166412,3403.2,3402.4,2.9391]
[1721068759625,0.61483206,3403.1,3402.5,2.93901]
[1721068759830,6.05007206,3403.3,3402.5,2.93901]
[1721068760048,6.05007206,3403.3,3401.8,5.37137]
[1721068760049,0.61483206,3403.1,3402.3,2.93913]
[1721068760330,0.77508885,3403.0,3402.4,2.93908]
[1721068760533,0.46934261,3402.9,3402.4,2.93908]
[1721068761260,1.08417467,3402.9,3402.4,2.93908]
[1721068761559,0.46934261,3402.9,3402.4,2.93908]
[1721068762243,0.61483206,3402.9,3402.5,2.93901]
[1721068762572,3.55324206,3403.2,3402.5,2.93901]
[1721068762856,3.55324206,3403.2,3402.3,2.93911]
[1721068762857,1.38311667,3403.1,3402.3,2.93911]
[1721068763071,0.77543754,3403.0,3402.4,2.93909]
[1721068763252,0.77543754,3402.9,3402.4,2.93909]
[1721068763561,1.10508032,3402.8,3402.4,2.93909]
[1721068763767,0.32964278,3402.8,3402.4,2.93909]
[1721068764125,0.61483206,3402.8,3402.4,2.93909]
[1721068764320,0.61483206,3402.9,3402.4,2.93909]
[1721068764569,0.92224809,3403.0,3402.4,2.93909]
[1721068764570,0.61483206,3403.0,3402.6,2.93891]
[1721068764874,1.60589508,3403.1,3402.6,2.93891]
[1721068765029,0.19978065,3403.0,3402.6,2.93891]
[1721068765666,0.81461271,3403.0,3402.6,2.93891]
[1721068765830,0.47257303,3402.9,3402.6,2.93891]
[1721068766161,6.66488412,3403.3,3403.0,2.93852]
[1721068766162,0.61483206,3403.3,3403.0,2.93852]
[1721068766325,0.61483206,3403.5,3403.1,2.93846]
[1721068766532,0.20327217,3403.4,3403.1,2.93846]
[1721068766730,0.20327217,3403.4,3402.1,2.93928]
[1721068767029,0.20327217,3403.4,3403.2,2.93835]
[1721068767362,0.20327217,3403.4,3403.3,5.87664]
[1721068767561,0.20444092,3403.4,3403.3,2.93832]
[1721068767762,0.61483206,3403.6,3403.3,2.93832]
[1721068768059,0.20462759,3403.5,3403.4,2.93823]
[1721068768623,0.20563918,3403.5,3403.4,2.93823]
[1721068769451,0.61483206,3403.7,3403.5,2.93811]
[1721068769665,0.20646513,3403.6,3403.5,2.93811]
[1721068769865,0.61483206,3403.9,3403.5,2.93811]
[1721068770069,0.61483206,3403.7,3403.5,2.93811]
[1721068770364,0.20573222,3403.6,3403.3,2.93825]
[1721068770533,0.82056428,3403.6,3403.3,5.87651]
[1721068770731,0.92224809,3403.8,3402.3,2.4654]
[1721068770732,0.20573222,3403.5,3402.3,2.4654]
[1721068771059,0.61483206,3403.6,3402.9,2.93866]
[1721068771231,0.45327393,3403.5,3402.9,2.93866]
[1721068771435,0.61483206,3403.7,3403.2,2.93838]
[1721068771770,0.20530487,3403.6,3403.2,2.93838]
[1721068772170,1.91482666,3403.9,3403.2,2.93838]
[1721068772341,0.82042724,3403.8,3403.2,2.93838]
[1721068772541,0.82042724,3403.8,3402.6,2.93892]
[1721068772542,0.82042724,3403.7,3403.0,2.9385]
[1721068772757,0.80983022,3403.6,3403.0,2.9385]
[1721068772949,0.60380121,3403.6,3403.0,2.9385]
[1721068773980,0.60380121,3403.6,3403.1,2.93849]
[1721068774136,0.20397552,3403.5,3403.1,2.93849]
[1721068774339,0.61439823,3403.8,3403.1,2.93849]
[1721068774578,1.91482666,3403.9,3403.3,2.93828]
[1721068774775,0.20561821,3403.8,3403.3,2.93828]
[1721068776243,0.67354259,3403.8,3403.3,2.93828]
[1721068776445,0.67354259,3403.8,3402.8,2.9387]
[1721068776446,4.07795174,3403.8,3402.8,2.9387]
[1721068776643,2.97109823,3403.5,3401.8,2.4474]
[1721068776885,0.61439823,3403.2,3402.4,2.93902]
[1721068777084,0.81964788,3403.1,3402.4,2.93902]
[1721068777259,0.17412452,3403.0,3402.5,2.93901]
[1721068777676,0.61439823,3403.3,3402.6,2.93887]
[1721068777890,0.61439823,3403.4,3402.6,2.93887]
[1721068778180,0.20154224,3403.3,3402.8,2.93874]
[1721068778381,0.81594047,3403.3,3402.6,5.87772]
[1721068778587,0.20154224,3403.2,3402.7,2.93883]
[1721068778793,1.52495116,3403.2,3402.8,2.93874]
[1721068779085,0.61439823,3403.4,3402.8,2.93874]
[1721068779387,0.20095918,3403.3,3402.8,5.87744]
[1721068779686,0.61439823,3403.5,3402.8,2.9387]
[1721068779687,0.61439823,3403.4,3402.8,2.9387]
[1721068779890,0.61439823,3403.4,3402.9,2.93865]
[1721068780189,0.15359956,3403.3,3402.9,2.93865]
[1721068780393,0.15359956,3403.3,3402.8,2.9387]
[1721068780394,0.61439823,3403.6,3403.0,2.93854]
[1721068780681,0.61439823,3403.7,3403.1,2.93841]
[1721068780845,0.61439823,3403.7,3402.7,2.4373]
[1721068780846,0.61439823,3403.9,3402.7,2.4373]
[1721068781048,3.78163402,3404.2,3403.5,2.93813]
[1721068781273,0.20665974,3404.1,3403.5,2.93813]
[1721068781478,5.45864517,3404.2,3403.5,2.93813]
[1721068781680,0.20655002,3404.1,3403.5,2.93813]
[1721068781889,0.81997843,3404.1,3403.5,2.93813]
[1721068782045,0.61342841,3404.1,3403.5,2.93813]
[1721068782246,0.61342841,3404.0,3403.5,2.93813]
[1721068782442,0.20554682,3403.9,3403.5,2.93813]
[1721068782894,0.26322595,3403.9,3403.1,2.93845]
[1721068783075,0.26322595,3403.9,3402.7,2.4373]
[1721068783076,0.81897523,3403.8,3403.4,2.93816]
[1721068783247,3.55105841,3404.1,3403.4,2.93816]
[1721068783449,0.81913459,3404.0,3403.4,2.93816]
[1721068783674,0.61342841,3404.0,3403.5,2.93813]
[1721068784650,0.81813136,3403.9,3403.5,2.93813]
[1721068784850,2.55944126,3404.1,3403.5,2.93813]
[1721068784851,1.63929864,3404.1,3403.5,2.93813]
[1721068785666,5.40086698,3404.2,3403.5,2.93813]
[1721068785991,3.7806642,3404.2,3403.5,2.93813]
[1721068786189,3.7806642,3404.2,3403.7,2.9379]
[1721068786190,3.16723579,3404.2,3403.7,2.9379]
[1721068786399,3.16723579,3404.2,3403.9,2.93779]
[1721068786760,3.61342841,3404.7,3404.0,2.93771]
[1721068787059,3.61342841,3404.7,3403.9,2.93779]
[1721068787060,0.61342841,3404.6,3403.9,2.93779]
[1721068787279,0.61342841,3404.6,3403.5,5.87621]
[1721068787280,2.93747,3404.3,3403.5,5.87621]
[1721068787497,2.99514913,3404.3,3403.5,5.87621]
[1721068787708,2.99525913,3404.2,3402.7,2.4373]
[1721068788000,3.60868754,3404.2,3403.3,2.93829]
[1721068788157,0.95270418,3404.1,3403.3,2.93829]
[1721068788360,0.74663002,3404.1,3403.3,2.93829]
[1721068788696,0.74663002,3404.1,3403.2,2.93839]
[1721068788697,0.05767913,3404.0,3403.2,2.93839]
[1721068788986,3.68427002,3404.1,3403.3,2.9383]
[1721068788987,0.74663002,3404.1,3403.3,2.9383]
[1721068789199,3.85755262,3404.4,3403.1,2.93847]
[1721068789200,3.55083841,3404.4,3403.1,2.93847]
[1721068789368,2.93741,3404.4,3403.7,2.93797]
[1721068790153,2.93741,3404.4,3403.5,2.93807]
[1721068790361,1.42394556,3404.5,3403.7,2.93797]
[1721068790362,0.75283802,3404.5,3403.7,2.93797]
[1721068790580,0.75283802,3404.5,3403.9,2.93779]
[1721068791001,0.75283802,3404.5,3403.7,5.87588]
[1721068791162,0.75283802,3404.5,3403.8,2.93788]
[1721068791467,0.75283802,3404.5,3403.9,2.93777]
[1721068792069,2.93711,3404.7,3403.9,2.93777]
[1721068792261,0.61342841,3404.8,3404.0,2.9377]
[1721068792491,5.93708,3404.8,3404.0,2.9377]
[1721068792689,3.76261913,3404.7,3404.0,2.9377]
[1721068792864,0.21207072,3404.6,3404.0,2.9377]
[1721068793064,3.61355191,3404.5,3403.6,2.93799]
[1721068793261,3.61355191,3404.5,3402.8,2.4862]
[1721068793262,2.93754,3404.2,3403.2,2.93835]
[1721068793604,3.14496071,3404.1,3403.3,2.9383]
[1721068793805,2.99535913,3404.1,3403.3,2.9383]
[1721068794301,0.20672182,3404.0,3403.5,2.93812]
[1721068794500,0.61342841,3404.2,3403.5,2.93812]
[1721068794799,0.63701484,3404.1,3403.5,2.93812]
[1721068795701,0.05767913,3404.0,3402.4,5.3441]
[1721068795866,3.14389715,3403.9,3403.0,2.93851]
[1721068796063,0.26370628,3403.8,3403.0,2.93851]
[1721068796309,0.26370628,3403.7,3403.0,2.93851]
[1721068796516,0.61342841,3403.8,3403.0,2.93851]
[1721068796517,0.20602715,3403.6,3403.0,2.93851]
[1721068796824,0.61342841,3403.9,3403.1,2.93849]
[1721068796971,1.01025971,3403.8,3403.1,2.93849]
[1721068797189,0.20532499,3403.7,3403.1,2.93849]
[1721068797389,0.20532499,3403.7,3403.0,2.93851]
[1721068797390,0.8187534,3403.7,3403.0,2.93851]
[1721068797624,0.8187534,3403.7,3402.4,2.3441]
[1721068797625,0.20532499,3403.6,3402.9,2.93866]
[1721068797775,0.8187534,3403.6,3402.9,2.93866]
[1721068797975,3.91580175,3403.7,3402.9,2.93866]
[1721068797976,1.37266917,3403.5,3402.9,2.93866]
[1721068798223,0.20532499,3403.4,3402.7,2.9388]
[1721068798878,3.14356499,3403.4,3402.6,2.93892]
[1721068799071,0.20532499,3403.3,3402.6,2.93892]
[1721068799277,3.20147412,3403.2,3402.3,2.9391]
[1721068799612,0.20532499,3403.1,3402.3,2.9391]
[1721068799810,2.99614913,3403.2,3402.3,2.9391]
[1721068800004,0.20056875,3403.1,3402.4,2.93907]
[1721068800203,3.13906875,3403.1,3402.2,2.93922]
[1721068800414,3.13906875,3403.1,3401.9,2.283]
[1721068800415,0.20056875,3403.0,3402.3,2.93916]
[1721068800589,0.20056875,3403.0,3402.5,2.93894]
[1721068800816,0.95546833,3403.2,3402.5,2.93894]
[1721068800991,0.20102475,3403.1,3402.5,2.93894]
[1721068801713,0.20102475,3403.1,3402.3,2.93916]
[1721068801714,0.91010097,3403.1,3402.3,2.93912]
[1721068801880,0.25870388,3403.0,3402.3,2.93912]
[1721068802075,0.20102475,3402.9,3402.3,2.93912]
[1721068802516,0.20102475,3402.9,3402.4,2.93909]
[1721068802681,0.20102475,3402.8,3402.4,2.93909]
[1721068802881,0.20102475,3402.7,3402.4,2.93909]
[1721068803117,2.93841,3403.2,3402.4,2.93909]
[1721068803325,0.78618541,3403.1,3402.5,2.93898]
[1721068803613,0.19851741,3403.0,3402.6,2.93891]
[1721068803820,0.19851741,3402.9,3402.6,2.93891]
[1721068804020,2.93827,3403.4,3402.6,2.93891]
[1721068804220,0.20115428,3403.3,3402.6,2.93891]
[1721068804380,0.20115428,3403.3,3402.8,2.93874]
[1721068804583,0.20115428,3403.2,3402.9,2.93858]
[1721068804935,7.3,3403.6,3403.0,2.93856]
[1721068805090,1.21287606,3403.5,3402.3,2.93912]
[1721068805291,0.20353095,3403.4,3402.8,2.93872]
[1721068805490,0.20353095,3403.3,3402.8,2.93872]
[1721068805690,0.20353095,3403.2,3402.9,2.93865]
[1721068805902,2.93799,3403.7,3402.8,2.93872]
[1721068805903,0.20353095,3403.1,3402.8,2.93872]
[1721068806102,0.20353095,3403.0,3402.4,5.87809]
[1721068806303,0.20353095,3402.9,3402.6,2.9389]
[1721068806514,0.20353095,3402.8,3402.7,5.87768]
[1721068806827,2.93806,3403.6,3402.9,2.93864]
[1721068806987,0.79031067,3403.5,3402.9,2.93864]
[1721068807188,0.20271267,3403.4,3402.9,2.93864]
[1721068808033,0.20271267,3403.3,3402.9,2.93864]
[1721068808227,0.20271267,3403.2,3402.9,2.93864]
[1721068808431,0.20271267,3403.1,3402.9,2.93864]
[1721068808728,2.93789,3403.8,3402.9,2.93864]
[1721068808935,4.92370131,3403.7,3402.9,2.93864]
[1721068809243,1.39187231,3403.6,3402.9,2.93864]
[1721068809543,0.20299039,3403.5,3403.0,2.93855]
[1721068809693,0.20299039,3403.4,3403.0,2.93855]
[1721068809893,0.20299039,3403.3,3403.0,2.93855]
[1721068810139,0.20299039,3403.2,3403.0,2.93855]
[1721068810298,0.20299039,3403.1,3403.0,2.93855]
[1721068810831,1.39219902,3403.8,3403.0,2.93855]
[1721068811025,1.22978529,3403.7,3403.0,2.93855]
[1721068811199,0.6158667,3403.1,3403.0,2.93855]
[1721068811398,0.20299039,3403.1,3402.8,2.93868]
[1721068811601,0.92380005,3402.9,3402.1,5.21362]
[1721068811937,0.81902233,3402.8,3402.2,2.9392]
[1721068812157,0.61603194,3402.9,3402.8,2.93875]
[1721068812442,0.81862631,3402.9,3402.8,2.93875]
[1721068812649,0.20263574,3402.9,3402.8,2.93875]
[1721068812800,1.12643579,3402.9,3402.8,2.93875]
[1721068813304,0.81856648,3402.9,3402.8,2.93875]
[1721068813509,0.81856648,3402.9,3402.8,5.8775]
[1721068814106,0.92380005,3403.1,3402.6,2.93888]
[1721068814107,0.61593074,3403.1,3402.6,2.93888]
[1721068814616,0.20331239,3403.0,3402.9,2.93866]
[1721068815023,0.81924675,3403.0,3402.9,5.87732]
[1721068815508,0.20331239,3403.0,3402.9,5.87732]
[1721068816348,0.61591531,3403.7,3403.2,2.93841]
[1721068816651,0.61591531,3403.9,3403.8,2.93789]
[1721068816814,0.61591531,3403.9,3403.6,2.93806]
[1721068816815,0.20930957,3403.9,3403.6,2.93806]
[1721068817018,0.20930957,3403.9,3403.4,2.9382]
[1721068817019,0.61577472,3403.8,3403.4,5.87638]
[1721068817318,0.61577472,3403.6,3403.5,2.93815]
[1721068817541,0.61577472,3403.6,3403.5,5.8763]
[1721068817542,0.20930957,3403.6,3403.5,5.8763]
[1721068817850,0.61577472,3403.7,3403.6,2.93806]
[1721068818150,0.20849857,3403.7,3403.5,2.93815]
[1721068818447,0.61575771,3403.6,3403.5,2.93815]
[1721068818635,0.82425628,3403.6,3403.5,2.93815]
[1721068818836,0.92380005,3403.8,3403.5,2.93815]
[1721068818837,0.61574668,3403.8,3403.5,2.93815]
[1721068819005,0.20879516,3403.7,3403.5,2.93815]
[1721068819548,0.20879516,3403.7,3403.6,5.87612]
[1721068819749,0.61574668,3403.8,3403.7,2.93797]
[1721068819931,0.82506259,3403.8,3403.7,2.93797]
[1721068820131,0.82501754,3403.8,3403.7,2.93797]
[1721068821245,0.20931591,3403.8,3403.6,5.87605]
[1721068821435,0.20931591,3403.8,3403.6,2.93799]
[1721068821436,0.61567198,3403.7,3403.6,2.93799]
[1721068821611,0.92362003,3403.9,3403.7,2.93797]
[1721068821813,0.20857859,3403.8,3403.6,5.87598]
[1721068822133,0.61566359,3403.7,3403.6,5.87598]
[1721068822319,0.82424218,3403.7,3403.6,5.87598]
[1721068823031,0.61566359,3403.7,3403.6,5.87598]
[1721068823235,0.20802203,3403.7,3403.6,5.87598]
[1721068823442,0.20802203,3403.7,3403.6,2.93799]
[1721068823767,0.20802203,3403.7,3402.6,13.33886]
[1721068823768,1.3679556,3403.7,3402.6,7.4]
[1721068823924,0.61583257,3403.2,3402.2,7.4]
[1721068824108,0.61583257,3403.2,3402.1,12.37]
[1721068824109,0.61583257,3402.9,3402.8,2.93875]
[1721068824450,0.61583257,3403.0,3402.8,2.93875]
[1721068824622,0.61583257,3403.1,3402.8,2.93875]
[1721068824945,0.61583257,3403.1,3402.9,2.93863]
[1721068824946,0.20425887,3403.0,3402.9,2.93863]
[1721068825249,0.61583257,3403.2,3402.9,2.93863]
[1721068825411,0.61583257,3403.3,3403.0,2.9385]
[1721068825747,0.92374886,3403.5,3403.3,2.93832]
[1721068825748,0.61590288,3403.4,3403.3,2.93832]
[1721068825946,0.20615414,3403.4,3403.1,2.93842]
[1721068826108,0.61593569,3403.2,3403.1,2.93842]
[1721068826309,0.20615414,3403.2,3403.1,2.93842]
[1721068826508,0.8221558,3403.2,3403.1,2.93842]
[1721068826744,0.20615414,3403.2,3403.1,2.93842]
[1721068827344,0.82217435,3403.2,3403.1,2.93842]
[1721068827708,1.13017365,3403.2,3403.0,2.93856]
[1721068827923,2.2064834,3403.1,3402.7,2.93881]
[1721068828158,2.20658549,3403.0,3402.8,2.93875]
[1721068828329,0.20615414,3402.9,3402.8,2.93875]
[1721068828518,1.13027574,3402.9,3402.8,2.93875]
[1721068828914,2.20671941,3402.9,3402.2,2.93922]
[1721068829148,4.53613164,3403.2,3402.2,2.93922]
[1721068829149,1.28262779,3402.8,3402.3,2.93917]
[1721068829328,1.28262779,3402.8,3401.7,2.4268]
[1721068829329,0.61608459,3402.5,3401.7,2.4268]
[1721068829528,0.92412688,3402.6,3401.9,2.93944]
[1721068829529,0.82223873,3402.4,3401.9,2.93944]
[1721068829732,0.61608459,3402.2,3401.7,2.93969]
[1721068829930,0.82223873,3402.1,3401.7,2.93963]
[1721068830128,0.81186356,3402.0,3401.8,2.93961]
[1721068830351,1.52986517,3402.4,3401.8,2.93961]
[1721068830352,0.61608459,3402.1,3401.9,2.93953]
[1721068830521,1.52986517,3402.4,3401.9,2.93953]
[1721068830522,0.61608459,3402.2,3401.9,2.93953]
[1721068831017,0.61608459,3402.2,3401.8,2.93961]
[1721068831018,0.61608459,3402.2,3402.0,2.93942]
[1721068831213,1.23202601,3402.5,3402.0,2.93942]
[1721068831214,0.61608459,3402.3,3402.0,2.93942]
[1721068831453,0.61608459,3402.3,3401.8,2.93961]
[1721068831649,0.61608459,3402.3,3401.7,2.93969]
[1721068831650,0.81175849,3402.2,3401.7,2.93969]
[1721068831848,0.81175849,3402.1,3401.7,2.93969]
[1721068832051,0.05306312,3402.1,3401.7,2.93969]
[1721068832831,0.05306312,3402.1,3401.8,2.93958]
[1721068833343,0.05306312,3402.1,3401.0,2.4936]
[1721068833540,0.61608459,3402.2,3401.5,2.93981]
[1721068833541,0.81020547,3402.0,3401.5,2.93981]
[1721068833714,0.81020547,3402.0,3401.6,2.93978]
[1721068833715,0.05293216,3402.0,3401.6,2.93978]
[1721068834143,0.61608459,3402.2,3401.6,2.93978]
[1721068834348,0.05287842,3401.9,3401.8,5.87924]
[1721068834535,7.91608459,3403.0,3402.6,2.93887]
[1721068834761,0.68265091,3403.0,3402.6,2.93887]
[1721068835072,3.86236688,3403.4,3402.6,2.93887]
[1721068835073,0.61608459,3403.1,3402.6,2.93887]
[1721068835243,0.81716818,3403.0,3402.6,2.93887]
[1721068835438,0.61608459,3403.0,3402.6,2.93887]
[1721068836240,0.61608459,3403.1,3402.6,2.93887]
[1721068836545,0.61608459,3402.8,3402.3,2.93916]
[1721068836764,0.61608459,3402.7,3402.3,2.93916]
[1721068836967,0.61608459,3402.8,3402.3,2.93916]
[1721068837355,0.61608459,3402.8,3402.5,2.93893]
[1721068837582,0.61608459,3402.9,3402.7,2.93882]
[1721068837785,0.61608459,3403.1,3402.7,2.93882]
[1721068838080,0.81741537,3403.0,3402.7,2.93882]
[1721068838249,0.20122923,3402.9,3402.7,2.93882]
[1721068838955,0.20122923,3402.9,3402.8,2.93875]
[1721068839462,0.81731382,3402.9,3402.8,2.93875]
[1721068840181,0.81731382,3402.9,3402.6,2.93885]
[1721068840381,0.20122923,3402.8,3402.6,2.93885]
[1721068840681,0.61608459,3403.0,3402.7,2.93884]
[1721068840906,0.20174627,3402.9,3402.7,2.93884]
[1721068841044,0.20174627,3402.9,3402.6,2.93885]
[1721068841446,0.81783086,3402.9,3402.8,2.93875]
[1721068841948,0.20174627,3402.9,3402.6,2.93885]
[1721068842157,0.20174627,3402.9,3402.6,5.87769]
[1721068842158,0.81783086,3402.9,3402.6,5.87769]
[1721068842359,0.20174627,3402.8,3402.7,2.93884]
[1721068843015,0.61608459,3403.1,3402.8,2.93871]
[1721068843171,0.20274056,3403.0,3402.8,2.93871]
[1721068843878,0.81882515,3403.0,3402.8,2.93871]
[1721068844082,0.20274056,3402.9,3402.8,2.93871]
[1721068844975,0.61608459,3403.1,3402.9,2.93866]
[1721068845187,10.23797,3403.7,3402.9,2.93866]
[1721068845388,0.61525631,3403.2,3402.9,2.93866]
[1721068845630,0.20298321,3403.1,3402.9,2.93866]
[1721068846202,0.81823952,3403.1,3402.9,2.93866]
[1721068846370,0.61525631,3403.2,3402.9,2.93866]
[1721068846570,0.20308877,3403.1,3402.9,2.93866]
[1721068847275,0.61525631,3403.4,3403.2,2.93841]
[1721068847484,0.61525631,3403.5,3403.4,2.93823]
[1721068847701,0.82055827,3403.5,3403.4,2.93823]
[1721068848482,0.82055827,3403.5,3403.2,2.93841]
[1721068848483,0.20530196,3403.5,3403.2,2.93833]
[1721068848681,0.61530016,3403.4,3403.2,2.93833]
[1721068848883,0.20530196,3403.3,3403.2,2.93833]
[1721068849484,0.82060212,3403.3,3403.2,2.93833]
[1721068849713,0.20530196,3403.3,3403.0,5.87704]
[1721068850017,0.61536596,3403.2,3402.2,2.3888]
[1721068850218,0.44117187,3403.3,3402.7,2.93881]
[1721068850219,0.61536596,3402.9,3402.7,2.93881]
[1721068850585,0.8175222,3402.8,3401.8,3.0]
[1721068850787,0.81686935,3402.7,3402.3,5.87826]
[1721068851116,0.24953663,3402.6,3402.4,2.93905]
[1721068851289,0.20150339,3402.5,3402.4,2.93905]
[1721068851687,0.2494875,3402.5,3402.4,2.93905]
[1721068853014,0.04798411,3402.5,3402.4,2.93905]
[1721068853185,0.92288447,3402.9,3402.5,2.93896]
[1721068853186,0.61536596,3402.8,3402.5,2.93896]
[1721068853387,0.20004899,3402.7,3402.5,2.93896]
[1721068853607,0.24811817,3402.7,3402.5,2.93896]
[1721068853773,0.04806918,3402.7,3402.5,2.93896]
[1721068853980,0.8139909,3402.6,3402.5,2.93896]
[1721068854597,0.61536596,3402.9,3402.5,2.93896]
[1721068854802,0.23586991,3403.3,3402.7,2.93883]
[1721068855004,0.61539927,3403.0,3402.7,2.93883]
[1721068855188,3.63696222,3403.2,3402.7,2.93883]
[1721068855189,0.61539927,3403.1,3402.7,2.93883]
[1721068855388,0.81771411,3403.0,3402.7,2.93883]
[1721068855700,0.61539667,3403.0,3402.7,2.93883]
[1721068856011,0.2019859,3402.9,3402.7,2.93883]
[1721068857174,0.91591216,3403.0,3402.7,2.93883]
[1721068857383,0.91591216,3403.0,3402.8,2.93875]
[1721068857384,0.20192518,3402.9,3402.8,2.93875]
[1721068857584,0.92309501,3403.1,3402.9,2.93866]
[1721068857585,0.61539667,3403.1,3402.9,2.93866]
[1721068858005,0.61539667,3403.1,3403.0,2.93858]
[1721068858191,0.92309501,3403.3,3403.0,2.93858]
[1721068858192,0.61539667,3403.3,3403.0,2.93858]
[1721068858514,4.47621089,3403.8,3403.1,2.93842]
[1721068858515,0.61539667,3403.4,3403.1,2.93842]
[1721068858678,0.61539667,3403.5,3403.2,2.93835]
[1721068858879,0.20570674,3403.4,3403.2,2.93835]
[1721068859121,0.82110341,3403.4,3403.2,2.93835]
[1721068859314,0.61539667,3403.4,3403.2,2.93835]
[1721068859518,0.61539667,3403.4,3403.3,2.93832]
[1721068859706,0.61539667,3403.5,3403.4,2.93823]
[1721068860016,0.20538004,3403.5,3403.4,2.93823]
[1721068860216,0.8206785,3403.5,3403.4,2.93823]
[1721068860517,0.8206785,3403.5,3403.4,5.87646]
[1721068860816,0.92309501,3403.6,3403.5,5.8763]
[1721068860817,0.61529846,3403.6,3403.5,5.8763]
[1721068861003,2.93728,3404.5,3403.5,2.93815]
[1721068861004,0.61529846,3403.8,3403.5,2.93815]
[1721068861332,0.2529706,3403.7,3403.6,2.93806]
[1721068861484,0.86801548,3403.7,3403.3,2.93824]
[1721068861819,0.20741044,3403.6,3403.3,2.93824]
[1721068862018,0.20741044,3403.6,3403.4,2.93817]
[1721068862326,0.04520837,3403.5,3403.4,5.8764]
[1721068862922,0.92309501,3404.0,3403.7,2.93797]
[1721068862923,0.61529846,3404.0,3403.7,2.93797]
[1721068863082,0.61529846,3404.4,3403.4,3.0]
[1721068863284,0.61529846,3404.5,3404.3,5.8748]
[1721068863585,0.61529846,3404.6,3404.3,5.8748]
[1721068863805,0.21340412,3404.5,3404.4,2.93736]
[1721068864009,0.82870258,3404.5,3404.4,2.93736]
[1721068864892,0.61529846,3404.7,3404.4,2.93736]
[1721068865092,0.21445321,3404.6,3404.4,2.93736]
[1721068865287,0.82975167,3404.6,3404.4,2.93736]
[1721068865629,0.21445321,3404.5,3404.4,2.93736]
[1721068865833,0.21445321,3404.5,3404.3,2.93745]
[1721068865987,0.82975167,3404.5,3404.3,2.93745]
[1721068866190,0.21445321,3404.4,3403.9,2.93776]
[1721068866390,0.92309501,3404.6,3404.1,2.93755]
[1721068866391,0.61529846,3404.6,3404.1,2.93755]
[1721068866703,0.61529846,3404.6,3404.4,2.93737]
[1721068866704,0.21306796,3404.5,3404.4,2.93737]
[1721068867013,0.61529846,3404.6,3404.4,2.93737]
[1721068867197,0.61529846,3404.7,3404.4,2.93737]
[1721068867539,0.21332279,3404.6,3404.4,2.93737]
[1721068868413,0.61431796,3404.6,3404.4,2.93737]
[1721068868791,0.61431796,3404.7,3404.4,2.93737]
[1721068868994,0.21307291,3404.6,3404.4,2.93737]
[1721068869525,0.61431796,3404.7,3404.4,2.93737]
[1721068869826,0.61431796,3404.8,3404.4,2.93737]
[1721068870036,0.82770922,3404.7,3404.5,2.93726]
[1721068870192,0.61431796,3404.8,3404.5,2.93726]
[1721068870535,0.61431796,3404.9,3404.5,2.93726]
[1721068870835,0.82842804,3404.8,3404.5,2.93726]
[1721068871004,0.61431796,3404.8,3404.5,2.93726]
[1721068872207,0.61431796,3404.8,3404.2,2.9375]
[1721068872413,0.92147694,3405.0,3404.0,2.93764]
[1721068872414,0.76789745,3404.7,3404.0,2.93764]
[1721068872716,0.61431796,3404.7,3404.1,2.93757]
[1721068872921,0.61431796,3404.8,3404.2,2.93753]
[1721068873294,1.19021996,3404.8,3404.2,2.93753]
[1721068874137,0.61431796,3404.8,3404.4,2.93732]
[1721068874290,0.61431796,3404.9,3404.4,2.93732]
[1721068874494,0.61431796,3405.0,3404.4,2.93732]
[1721068874915,3.55114796,3405.1,3404.4,2.93732]
[1721068875095,5.64446104,3405.1,3404.4,2.93732]
[1721068876400,0.82880878,3405.0,3404.5,2.93728]
[1721068876600,0.61431796,3404.9,3404.5,2.93728]
[1721068877098,0.61431796,3404.8,3404.3,2.93737]
[1721068877331,0.61431796,3404.8,3404.4,2.93734]
[1721068877716,1.27091176,3404.9,3404.4,2.93734]
[1721068877920,1.27091176,3404.9,3402.9,5.35993]
[1721068877921,2.93743,3404.4,3402.9,5.35993]
[1721068878225,2.93795,3403.8,3402.3,2.4367]
[1721068878449,3.81412388,3403.7,3402.9,2.93861]
[1721068878625,0.81846475,3403.6,3403.0,2.93853]
[1721068878811,0.61355689,3403.6,3403.0,2.93853]
[1721068879010,0.61355689,3403.5,3403.0,2.93853]
[1721068879541,0.61355689,3403.4,3402.8,2.9387]
[1721068879744,0.61355689,3403.4,3402.7,2.9388]
[1721068879745,0.61355689,3403.4,3402.9,2.93863]
[1721068879954,0.61355689,3403.6,3402.9,2.93863]
[1721068880153,0.61355689,3403.5,3402.9,2.93863]
[1721068880807,0.61355689,3403.4,3402.9,2.93863]
[1721068881208,0.61355689,3403.4,3402.9,2.93858]
[1721068881424,0.61355689,3403.5,3402.9,2.93858]
[1721068881639,0.61355689,3403.5,3403.0,2.93856]
[1721068881844,0.81576755,3403.4,3403.0,2.93856]